bitfinex-derivatives/quotes_SOLF0:USTF0_20240815
["timestamp","ask_amount","ask_price","bid_price","bid_amount"]
[1723726234026,41.44,144.15,144.05,41.44]
[1723726234331,41.44,144.17,144.13,0.04609681]
[1723726234530,41.44,144.15,144.13,0.04609681]
[1723726235027,0.05047183,144.11,144.08,41.44]
[1723726235219,41.44,144.2,144.04,1.3514]
[1723726235220,41.44,144.2,144.09,7.758]
[1723726235420,41.44,144.2,144.09,42.698]
[1723726235630,41.44,144.2,144.13,0.049943]
[1723726235827,49.98,144.19,144.13,0.049943]
[1723726236330,53.4475,144.19,144.13,0.049943]
[1723726236523,49.98,144.19,144.13,0.049943]
[1723726236926,0.05093643,144.17,144.13,0.049943]
[1723726237632,49.98,144.21,144.09,4.70579947]
[1723726238031,0.05270652,144.16,144.15,3.4684]
[1723726238239,49.98,144.28,144.15,6.5]
[1723726238440,49.98,144.28,144.15,7.8102]
[1723726238736,49.98,144.28,144.15,57.7902]
[1723726238936,6.5,144.29,144.15,57.7902]
[1723726239235,49.98,144.33,144.21,49.98]
[1723726239431,49.98,144.35,144.23,49.98]
[1723726239634,49.98,144.37,144.24,1.3102]
[1723726239938,49.98,144.37,144.25,49.98]
[1723726240240,49.98,144.35,144.26,6.84]
[1723726240438,0.04770028,144.3,144.26,6.84]
[1723726240630,0.04770028,144.3,144.29,3.465]
[1723726241231,0.04770028,144.3,144.29,3.51359695]
[1723726241736,56.82,144.4,144.29,0.04859695]
[1723726242038,49.98,144.42,144.37,3.4629]
[1723726242242,49.98,144.42,144.29,0.04859695]
[1723726242444,49.98,144.44,144.31,49.98]
[1723726242638,49.98,144.44,144.32,6.84]
[1723726243042,49.98,144.44,144.33,1.2515]
[1723726243441,49.98,144.42,144.33,1.2515]
[1723726243643,49.98,144.37,144.25,49.98]
[1723726243838,3.4637,144.35,144.3,3.4646]
[1723726244046,49.98,144.37,144.26,8.0915]
[1723726244648,53.4431,144.37,144.36,0.05066887]
[1723726244842,49.98,144.37,144.26,8.0915]
[1723726245143,0.05262002,144.33,144.32,3.4642]
[1723726245346,0.05262002,144.33,144.26,8.0915]
[1723726246243,0.05262002,144.33,144.28,0.04762572]
[1723726247153,0.05262002,144.33,144.29,3.4649]
[1723726247450,0.05262002,144.33,144.28,0.04762572]
[1723726247849,49.98,144.32,144.28,0.04762572]
[1723726248047,49.98,144.32,144.22,1.281]
[1723726248048,49.98,144.29,144.18,6.84]
[1723726248252,49.98,144.27,144.16,2.6955]
[1723726248449,49.98,144.24,144.16,2.6955]
[1723726248646,53.4463,144.24,144.2,3.467]
[1723726248855,49.98,144.24,144.16,2.6955]
[1723726249455,0.04511595,144.21,144.19,0.04463251]
[1723726249957,6.84,144.29,144.17,3.54992236]
[1723726250150,6.84,144.29,144.16,52.6755]
[1723726250151,49.98,144.31,144.19,49.98]
[1723726250351,3.4645,144.31,144.26,3.4656]
[1723726250546,6.84,144.32,144.19,49.98]
[1723726250857,3.4641,144.33,144.21,49.98]
[1723726251060,6.84,144.34,144.21,56.82]
[1723726251356,0.04764699,144.28,144.26,0.05309448]
[1723726251551,0.04764699,144.28,144.27,3.4655]
[1723726251752,6.84,144.36,144.21,56.82]
[1723726252150,0.05314428,144.29,144.26,0.04783916]
[1723726252651,49.98,144.35,144.26,0.04783916]
[1723726252853,49.98,144.37,144.26,49.98]
[1723726253057,49.98,144.4,144.27,6.84]
[1723726253360,49.98,144.4,144.27,8.1105]
[1723726253743,3.4628,144.39,144.34,3.4637]
[1723726253958,3.4628,144.39,144.27,8.1105]
[1723726254155,0.04407651,144.35,144.32,0.04415664]
[1723726254350,0.04407651,144.35,144.34,3.4638]
[1723726255057,0.04407651,144.35,144.32,0.04415664]
[1723726255560,0.04407651,144.35,144.34,3.4638]
[1723726257763,0.04407651,144.35,144.25,1.2924]
[1723726257764,100.00407651,144.35,144.08,225.0]
[1723726257954,49.98,144.31,144.19,3.45261188]
[1723726258151,6.84,144.31,144.21,49.98]
[1723726258660,49.98,144.35,144.28,3.4653]
[1723726258864,3.4641,144.33,144.21,53.41425245]
[1723726259063,49.98,144.35,144.21,53.41425245]
[1723726259262,6.84,144.34,144.25,49.98]
[1723726259454,0.04938046,144.33,144.3,0.0463041]
[1723726260052,0.04938046,144.33,144.31,3.4644]
[1723726260360,0.04938046,144.33,144.3,0.0463041]
[1723726261759,3.4645,144.32,144.3,0.0463041]
[1723726262067,50.02938046,144.33,144.3,0.0463041]
[1723726262281,49.98,144.31,144.21,1.25]
[1723726262863,3.465,144.29,144.21,1.25]
[1723726263166,49.98,144.33,144.21,1.25]
[1723726263362,49.98,144.33,144.22,49.98]
[1723726263659,49.98,144.35,144.24,50.0239452]
[1723726263969,0.05178435,144.29,144.24,50.0239452]
[1723726264259,0.05178435,144.29,144.28,3.4653]
[1723726264861,56.82,144.38,144.31,3.4645]
[1723726265060,49.98,144.38,144.26,1.2888]
[1723726265260,49.98,144.4,144.27,49.98]
[1723726265456,49.98,144.4,144.34,3.4636]
[1723726265668,3.4634,144.36,144.27,49.98]
[1723726265862,49.98,144.4,144.27,49.98]
[1723726266461,0.04683934,144.33,144.31,3.4643]
[1723726266663,0.04683934,144.33,144.3,0.04893564]
[1723726267261,49.98,144.36,144.27,6.84]
[1723726267567,0.04941621,144.33,144.3,0.04648795]
[1723726269065,49.98,144.31,144.2,1.2459]
[1723726269967,49.98,144.28,144.2,1.2459]
[1723726270171,7.9158,144.32,144.17,1.2872]
[1723726270172,49.98,144.26,144.17,1.2872]
[1723726270568,49.98,144.23,144.13,1.2716]
[1723726271067,49.98,144.23,144.17,0.04599621]
[1723726271659,3.4673,144.2,144.17,0.04599621]
[1723726271867,0.05048708,144.21,144.17,0.04599621]
[1723726272471,0.05048708,144.21,144.17,60.55654413]
[1723726272662,49.98,144.3,144.19,49.98]
[1723726273070,7.0,144.33,144.17,0.04599621]
[1723726273071,49.98,144.26,144.17,0.04599621]
[1723726274170,49.98,144.23,144.17,0.04599621]
[1723726274366,49.98,144.23,144.13,1.2716]
[1723726274574,7.0,144.27,144.13,1.2716]
[1723726274575,49.98,144.21,144.13,1.2716]
[1723726274775,3.4672,144.2,144.15,3.4682]
[1723726275173,3.4672,144.2,144.19,0.04976481]
[1723726275477,49.98,144.2,144.07,7.0]
[1723726275670,49.98,144.17,144.07,7.0]
[1723726275971,3.4683,144.16,144.11,3.4692]
[1723726276273,49.98,144.17,144.06,1.3195]
[1723726276673,49.98,144.14,144.06,1.3195]
[1723726276871,49.98,144.14,144.12,0.04621699]
[1723726277065,49.98,144.14,144.02,7.0]
[1723726277271,49.98,144.14,144.03,1.3296]
[1723726277473,3.4692,144.12,144.07,3.4701]
[1723726277675,56.98,144.12,144.03,1.3296]
[1723726278071,3.4699,144.09,144.04,3.471]
[1723726278269,49.98,144.1,143.96,7.0]
[1723726278474,49.98,144.07,144.06,0.05118538]
[1723726278678,49.98,144.07,143.93,1.3296]
[1723726278679,99.96,144.07,143.96,1.27539809]
[1723726278980,49.98,144.01,143.93,1.3296]
[1723726279175,49.98,143.99,143.84,75.11126289]
[1723726279373,49.98,143.96,143.88,1.27606109]
[1723726279674,49.98,143.93,143.88,1.27606109]
[1723726279978,49.98,143.93,143.84,25.13126289]
[1723726280173,50.03270593,143.93,143.91,0.04685742]
[1723726280574,49.98,143.93,143.84,25.13126289]
[1723726280780,49.98,143.88,143.84,25.13126289]
[1723726281375,49.98,143.92,143.85,0.04448378]
[1723726281575,49.98,143.94,143.85,0.04448378]
[1723726281773,0.04525273,143.87,143.85,0.04448378]
[1723726281977,49.98,143.92,143.84,25.13126289]
[1723726282273,0.0465162,143.87,143.86,3.4754]
[1723726282476,0.0465162,143.87,143.85,0.04604559]
[1723726282679,49.98,143.92,143.85,0.04604559]
[1723726282874,0.04991233,143.87,143.85,0.04604559]
[1723726283278,3.4744,143.9,143.85,0.04604559]
[1723726283480,49.98,143.99,143.85,0.04604559]
[1723726283481,0.04666022,143.87,143.85,0.04604559]
[1723726283877,49.98,143.89,143.84,25.13126289]
[1723726284080,49.98,143.86,143.85,0.05255175]
[1723726285784,49.98,143.86,143.84,25.13126289]
[1723726285785,49.98,143.86,143.74,101.63053333]
[1723726285985,53.4566,143.81,143.74,94.27053333]
[1723726286176,49.98,143.79,143.74,94.27053333]
[1723726286388,49.98,143.84,143.74,94.27053333]
[1723726286389,49.98,143.76,143.74,94.27053333]
[1723726286581,7.36,143.78,143.74,94.27053333]
[1723726286780,49.98,143.81,143.74,94.27053333]
[1723726286981,49.98,143.81,143.79,3.4769]
[1723726287277,0.0445741,143.77,143.75,0.04939588]
[1723726287477,49.98,143.84,143.74,94.27053333]
[1723726287780,0.05059034,143.77,143.75,0.0528742]
[1723726287973,49.98,143.79,143.75,0.0528742]
[1723726288376,49.98,143.76,143.74,94.27053333]
[1723726288577,49.98,143.76,143.68,128.61889373]
[1723726289180,0.05101781,143.77,143.68,128.61889373]
[1723726289783,0.05101781,143.77,143.73,0.04409826]
[1723726290493,0.05101781,143.77,143.76,3.4778]
[1723726291196,57.34,143.89,143.75,49.98]
[1723726291384,7.36,143.89,143.77,49.98]
[1723726291579,49.98,143.94,143.8,49.98]
[1723726291786,0.30927264,143.93,143.82,49.98]
[1723726291982,53.4536,143.94,143.88,3.4749]
[1723726292178,0.30921689,143.93,143.82,49.98]
[1723726292486,0.05166722,143.89,143.86,0.04789958]
[1723726293288,0.30893487,143.98,143.87,49.98]
[1723726293483,0.30893487,143.98,143.86,2.65999958]
[1723726293684,0.30893487,143.98,143.86,2.6121]
[1723726294082,0.30893487,143.98,143.92,3.4739]
[1723726294281,0.30893487,143.98,143.86,2.6121]
[1723726294677,0.05245213,143.93,143.92,49.98]
[1723726294880,7.36,144.0,143.92,57.68]
[1723726295082,3.4713,144.03,143.97,3.4727]
[1723726295282,0.30852083,144.02,143.92,57.68]
[1723726295487,0.30852083,144.05,143.92,57.68]
[1723726295689,49.98,144.06,143.98,3.4724]
[1723726295987,0.30836398,144.05,143.98,3.4724]
[1723726296188,0.30836398,144.05,143.93,1.2273]
[1723726296393,0.04835984,144.03,144.01,0.05135813]
[1723726296689,3.51965984,144.03,143.97,3.4726]
[1723726296984,0.04835984,144.03,143.93,1.2273]
[1723726297183,49.98,144.06,144.01,0.05206472]
[1723726297582,49.98,144.06,143.93,1.2273]
[1723726297783,0.04830751,143.99,143.93,1.2273]
[1723726298182,0.04830751,143.99,143.95,0.04706791]
[1723726298384,49.98,143.98,143.95,0.04706791]
[1723726298683,0.04830751,143.99,143.95,0.04706791]
[1723726298886,0.04830751,143.99,143.95,3.52006791]
[1723726299190,0.04830751,143.99,143.95,0.04706791]
[1723726299489,0.04830751,143.99,143.96,3.4729]
[1723726299692,0.04830751,143.99,143.95,0.04706791]
[1723726300090,0.04830751,143.99,143.96,3.4728]
[1723726300292,0.04830751,143.99,143.95,0.04706791]
[1723726300590,0.04830751,143.99,143.96,3.4729]
[1723726300986,0.04830751,143.99,143.95,0.04706791]
[1723726301184,0.04830751,143.99,143.95,3.52026791]
[1723726301388,0.04830751,143.99,143.95,0.04706791]
[1723726303397,0.04830751,143.99,143.97,3.4726]
[1723726303582,0.04830751,143.99,143.95,0.04706791]
[1723726304593,0.04830751,143.99,143.98,3.4725]
[1723726305294,0.04830751,143.99,143.95,0.04706791]
[1723726308489,0.04830751,143.99,143.98,3.4725]
[1723726308687,0.04830751,143.99,143.95,0.04706791]
[1723726309490,0.04830751,143.99,143.98,3.4725]
[1723726311189,0.04830751,143.99,143.96,2.5536]
[1723726311796,0.04830751,143.99,143.98,3.4725]
[1723726314393,0.04830751,143.99,143.95,0.04706791]
[1723726315096,49.98,143.98,143.95,0.04706791]
[1723726315495,3.473,143.96,143.95,0.04706791]
[1723726315895,0.04830751,143.99,143.95,0.04706791]
[1723726316996,38.24270066,144.05,143.95,0.04706791]
[1723726317192,38.24270066,144.05,143.95,1.2701]
[1723726317601,3.4714,144.03,143.99,3.4722]
[1723726317900,38.24270066,144.05,143.95,1.2701]
[1723726318097,0.04918773,144.02,144.0,0.05158212]
[1723726318695,3.4718,144.01,144.0,0.05158212]
[1723726318906,14.69228773,144.02,143.9,1.2701]
[1723726319097,49.98,143.99,143.86,49.98]
[1723726319310,49.98,143.99,143.89,4.8019]
[1723726319601,49.98,143.96,143.89,1.3274]
[1723726319907,49.98,143.99,143.89,1.3274]
[1723726320094,0.05117859,143.94,143.91,0.04773865]
[1723726320893,0.05117859,143.94,143.93,3.4737]
[1723726321104,57.68,144.04,143.91,50.02773865]
[1723726321310,3.4719,144.01,143.92,1.296]
[1723726321510,7.7,144.04,143.92,1.296]
[1723726321800,7.7,144.04,143.94,49.98]
[1723726322001,7.7,144.04,143.92,1.296]
[1723726322400,0.05060084,144.0,143.99,3.4722]
[1723726322600,0.05060084,144.0,143.98,0.05185523]
[1723726323313,3.4722,143.99,143.98,0.05185523]
[1723726324103,0.05060084,144.0,143.98,0.05185523]
[1723726324505,3.4722,143.99,143.98,0.05185523]
[1723726324702,0.05060084,144.0,143.89,9.0074]
[1723726324905,49.98,143.98,143.89,1.3274]
[1723726325108,3.4738,143.93,143.89,1.3274]
[1723726325305,49.98,143.96,143.89,3.4744]
[1723726325503,7.68,143.96,143.86,1.2932]
[1723726325703,49.98,144.0,143.86,1.2932]
[1723726325902,49.98,144.0,143.87,7.68]
[1723726326198,0.04614216,143.92,143.9,0.04666558]
[1723726326504,3.4722,144.0,143.89,49.98]
[1723726326805,49.98,144.0,143.9,0.0474981]
[1723726327009,49.98,144.0,143.87,49.98]
[1723726327206,49.98,143.95,143.78,6.9544]
[1723726327403,7.68,143.96,143.8,49.98]
[1723726327611,49.98,143.93,143.8,49.98]
[1723726327807,0.04831904,143.89,143.87,0.04610304]
[1723726328207,49.98,143.9,143.82,3.4762]
[1723726328510,49.98,143.9,143.79,2.615]
[1723726328711,0.05185058,143.89,143.87,0.04512026]
[1723726328911,57.66,143.9,143.79,2.615]
[1723726329213,57.66,143.9,143.87,0.05180635]
[1723726329514,0.04852663,143.89,143.87,0.05180635]
[1723726329712,3.52332663,143.89,143.87,0.05180635]
[1723726330012,0.04852663,143.89,143.87,0.05321648]
[1723726331010,0.04852663,143.89,143.88,3.4749]
[1723726331210,49.98,143.99,143.88,1.2272]
[1723726331412,49.98,143.99,143.87,0.05321648]
[1723726331611,49.98,143.95,143.82,51.2072]
[1723726331814,53.4532,143.95,143.82,51.2072]
[1723726332011,49.98,143.95,143.84,49.98]
[1723726332205,49.98,143.98,143.87,49.98]
[1723726332407,49.98,144.0,143.89,49.98]
[1723726332701,0.05265329,143.91,143.9,1.3398]
[1723726332905,57.66,144.01,143.9,1.3398]
[1723726333318,7.68,144.01,143.9,1.3398]
[1723726333613,49.98,144.05,143.92,49.98]
[1723726334113,50.02447572,144.0,143.97,0.04445257]
[1723726334307,49.98,143.97,143.83,49.98]
[1723726334512,49.98,143.97,143.84,1.3225]
[1723726335307,7.68,143.99,143.85,49.98]
[1723726335510,0.0443399,143.92,143.89,0.04793033]
[1723726335701,7.68,143.99,143.91,49.98]
[1723726335909,8.4901,144.05,143.91,49.98]
[1723726336211,8.4901,144.05,143.93,49.98]
[1723726336609,49.98,144.06,143.93,49.98]
[1723726336810,49.98,144.06,143.94,1.2526]
[1723726337009,0.05118941,144.01,143.98,0.04634032]
[1723726337913,0.05118941,144.01,143.99,3.4721]
[1723726338218,0.05118941,144.01,143.98,0.04634032]
[1723726338906,50.03118941,144.01,143.82,6.9524]
[1723726339215,49.98,143.99,143.86,49.98]
[1723726339411,49.98,143.99,143.87,8.95635128]
[1723726339611,49.98,144.02,143.88,49.98]
[1723726340009,3.472,144.0,143.96,3.4728]
[1723726340218,0.04440045,143.96,143.94,0.05042745]
[1723726340516,49.98,144.04,143.93,7.68]
[1723726340816,0.05234736,143.96,143.94,1.2321]
[1723726341013,53.4511,144.04,143.94,2.58378222]
[1723726341211,53.4511,144.04,143.94,52.56378222]
[1723726341405,3.4708,144.05,143.94,52.5171]
[1723726341906,3.4707,144.06,143.94,52.5171]
[1723726342109,0.0494117,144.01,144.0,3.472]
[1723726342614,0.0494117,144.01,143.98,0.05017846]
[1723726342615,0.8101,144.11,143.99,7.68]
[1723726342811,275.98,144.13,144.01,49.98]
[1723726343012,275.98,144.13,144.02,1.3391]
[1723726343614,53.449,144.13,144.02,1.3391]
[1723726343814,49.98,144.16,144.03,49.98]
[1723726344013,0.05307086,144.09,144.06,0.05191238]
[1723726344317,0.05307086,144.09,144.06,7.73191238]
[1723726344516,0.05307086,144.09,144.08,3.4701]
[1723726344717,7.68,144.18,144.06,7.68]
[1723726344912,275.98,144.2,144.13,3.4688]
[1723726345113,49.98,144.2,144.06,7.68]
[1723726345716,53.4473,144.2,144.08,49.98]
[1723726345918,49.98,144.2,144.09,1.2404]
[1723726346142,49.98,144.2,144.15,3.4682]
[1723726346319,53.4474,144.2,144.15,3.4682]
[1723726346518,49.98,144.2,144.14,3.4684]
[1723726346824,0.05270113,144.16,144.1,49.98]
[1723726347118,0.05270113,144.16,144.12,7.68]
[1723726347314,95.97744466,144.23,144.13,49.98]
[1723726347516,95.97744466,144.23,144.16,0.05089624]
[1723726347719,95.97744466,144.23,144.2,3.4671]
[1723726348020,95.97744466,144.23,144.16,0.05089624]
[1723726348021,95.97744466,144.23,144.16,50.03089624]
[1723726348323,95.97744466,144.23,144.22,3.4667]
[1723726349522,93.93514466,144.23,144.22,3.4667]
[1723726349728,0.05139628,144.24,144.23,3.4665]
[1723726350023,128.48024315,144.28,144.21,49.98]
[1723726350322,128.48024315,144.28,144.21,50.03287327]
[1723726350515,128.48024315,144.28,144.27,3.4655]
[1723726351115,3.4643,144.32,144.27,3.4655]
[1723726351323,49.98,144.32,144.22,7.68]
[1723726351521,0.05324038,144.29,144.26,0.04617342]
[1723726352921,0.05324038,144.29,144.28,3.4653]
[1723726353511,0.05324038,144.29,144.26,0.04617342]
[1723726356619,3.4653,144.28,144.26,0.04617342]
[1723726356820,49.98,144.27,144.18,9.0379]
[1723726357027,49.98,144.25,144.13,36.7641]
[1723726357228,3.4666,144.23,144.19,3.4673]
[1723726357622,3.4666,144.23,144.13,38.0197]
[1723726357821,3.4663,144.24,144.2,3.4672]
[1723726358023,49.98,144.25,144.13,38.0197]
[1723726358233,0.04755632,144.19,144.17,0.04385079]
[1723726358727,3.4666,144.23,144.18,3.4675]
[1723726358917,0.04687559,144.19,144.17,0.04385079]
[1723726359114,0.04687559,144.19,144.13,38.0197]
[1723726359427,49.98,144.23,144.17,0.04710836]
[1723726359830,0.05283087,144.17,144.06,2.6454]
[1723726360020,0.05283087,144.17,144.06,3.9732]
[1723726360221,49.98,144.18,144.06,3.9732]
[1723726360421,49.98,144.15,144.06,1.3278]
[1723726360726,3.4701,144.09,144.01,2.6454]
[1723726360928,57.66,144.13,144.01,2.6186]
[1723726361120,57.66,144.13,144.09,0.04722508]
[1723726361317,3.4697,144.1,144.09,0.04722508]
[1723726361528,3.4697,144.1,144.04,3.471]
[1723726361529,49.98,144.1,144.04,3.471]
[1723726361722,3.4695,144.11,144.01,2.6186]
[1723726362028,57.66,144.12,144.01,2.6186]
[1723726362219,49.98,144.1,144.01,1.3278]
[1723726362419,3.4704,144.07,144.01,1.3278]
[1723726362618,7.68,144.12,144.01,1.3278]
[1723726362828,0.0466091,144.07,144.05,3.4707]
[1723726363019,0.0466091,144.07,144.04,0.04606584]
[1723726363226,49.98,144.13,144.02,49.98]
[1723726363426,49.98,144.13,144.01,1.3278]
[1723726363723,0.04817599,144.07,144.04,0.0497341]
[1723726364146,49.98,144.08,143.95,1.3441]
[1723726364427,49.98,144.05,143.95,1.3441]
[1723726364728,49.98,144.01,143.93,7.68]
[1723726365026,7.68,144.0,143.86,49.98]
[1723726365426,7.68,143.99,143.93,3.4735]
[1723726365627,7.68,143.98,143.86,49.98]
[1723726366135,7.68,143.98,143.96,0.04426122]
[1723726366329,11.1527,143.98,143.96,0.04426122]
[1723726366632,7.68,143.98,143.96,0.04426122]
[1723726366927,7.68,143.98,143.86,49.98]
[1723726367127,0.04720257,143.93,143.86,49.98]
[1723726367534,0.04720257,143.93,143.92,3.4739]
[1723726368230,49.98,144.03,143.89,49.98]
[1723726368432,49.98,144.03,143.91,0.04858782]
[1723726368433,7.68,144.02,143.91,0.04858782]
[1723726368734,3.4721,144.0,143.95,3.4731]
[1723726369028,0.04999024,143.98,143.91,49.98]
[1723726369223,0.04999024,143.98,143.97,3.4727]
[1723726369625,49.98,144.08,143.96,50.03051703]
[1723726369827,49.98,144.1,143.98,49.98]
[1723726370032,49.98,144.1,143.99,7.68]
[1723726371033,0.04592072,144.06,144.03,0.05108937]
[1723726371335,0.04592072,144.06,144.05,3.4708]
[1723726372833,49.98,144.15,144.1,3.4694]
[1723726373034,49.98,144.15,144.04,49.98]
[1723726373430,49.98,144.16,144.02,49.98]
[1723726373839,3.4688,144.14,144.02,49.98]
[1723726374035,0.05160146,144.1,144.08,0.04799248]
[1723726374333,0.05160146,144.1,144.09,3.4698]
[1723726374524,3.4687,144.14,144.09,3.4698]
[1723726374837,49.98,144.18,144.08,0.04799248]
[1723726375440,0.04609155,144.14,144.1,3.4694]
[1723726375933,3.51489155,144.14,144.12,0.05154702]
[1723726376133,0.04609155,144.14,144.12,0.05154702]
[1723726376331,0.04609155,144.14,144.07,7.68]
[1723726376534,0.04609155,144.14,144.12,0.05235816]
[1723726376941,0.04609155,144.14,144.08,49.98]
[1723726377135,0.04609155,144.14,144.13,3.4689]
[1723726378948,311.42,144.28,144.12,50.03090227]
[1723726379144,3.4665,144.23,144.13,7.68]
[1723726379449,1.2932,144.27,144.18,3.4675]
[1723726379650,49.98,144.25,144.15,49.98]
[1723726379852,1.2932,144.27,144.2,3.467]
[1723726380353,0.0495185,144.21,144.19,0.05101434]
[1723726380553,49.98,144.25,144.15,49.98]
[1723726380851,0.05095719,144.21,144.19,0.05184772]
[1723726381555,57.66,144.28,144.15,49.98]
[1723726381750,3.4659,144.26,144.16,1.2778]
[1723726381946,0.04679742,144.21,144.19,0.04610235]
[1723726382148,0.04679742,144.21,144.2,3.4672]
[1723726382454,2.0803,144.32,144.19,57.66]
[1723726382455,51.2502,144.32,144.19,57.66]
[1723726382848,0.0514555,144.22,144.19,57.70822678]
[1723726383154,0.0514555,144.22,144.19,0.04822678]
[1723726383657,49.98,144.27,144.2,3.467]
[1723726383954,49.98,144.27,144.17,51.2328]
[1723726384152,0.05339269,144.22,144.21,3.4668]
[1723726384359,0.05339269,144.22,144.19,0.04919273]
[1723726384551,3.4662,144.24,144.17,1.2528]
[1723726384864,3.4674,144.2,144.14,1.2747]
[1723726385062,49.98,144.2,144.19,0.04869042]
[1723726385361,49.98,144.2,144.09,1.3418]
[1723726385660,49.98,144.17,144.09,1.3418]
[1723726385860,3.4674,144.2,144.09,1.3418]
[1723726386161,49.98,144.19,144.07,2.6345]
[1723726386359,3.469,144.13,144.07,2.6345]
[1723726386660,49.98,144.19,144.07,2.6345]
[1723726386859,0.04506225,144.16,144.13,0.04675002]
[1723726387160,49.98,144.19,144.07,52.6145]
[1723726387358,49.98,144.19,144.03,1.3418]
[1723726387558,49.98,144.15,144.03,2.5716]
[1723726387761,49.98,144.15,144.1,0.04446853]
[1723726388456,7.50766905,144.14,144.1,0.04446853]
[1723726388654,7.50766905,144.14,144.03,2.5716]
[1723726388655,49.98,144.12,144.03,1.2298]
[1723726389054,3.4694,144.11,144.03,1.2298]
[1723726389259,49.98,144.12,144.03,1.2298]
[1723726389462,49.98,144.12,144.0,1.3607]
[1723726389862,0.05039935,144.07,144.05,0.04932014]
[1723726390264,49.98,144.1,144.05,0.04932014]
[1723726390564,7.46,144.14,144.05,0.04932014]
[1723726390565,50.02981444,144.07,144.05,0.04932014]
[1723726390752,3.4709,144.05,143.95,52.4661]
[1723726390957,49.98,144.1,144.05,0.04808498]
[1723726391160,7.46,144.09,144.05,0.04808498]
[1723726391464,49.98,144.08,143.95,52.4661]
[1723726391665,49.98,144.08,144.06,0.04637758]
[1723726391852,49.98,144.08,143.95,52.4661]
[1723726392452,49.98,144.08,144.01,3.4716]
[1723726392662,49.98,144.08,143.95,52.4661]
[1723726393058,0.04594503,144.03,144.0,0.04380439]
[1723726393364,50.02594503,144.03,144.0,0.04380439]
[1723726393563,3.4718,144.01,144.0,0.04380439]
[1723726394563,0.04594503,144.03,144.0,3.51570439]
[1723726394759,0.04594503,144.03,144.0,0.04380439]
[1723726395156,0.04594503,144.03,144.02,3.4715]
[1723726396270,0.04594503,144.03,144.01,3.4716]
[1723726396472,0.04594503,144.03,144.0,0.04380439]
[1723726397466,0.04594503,144.03,144.0,3.51560439]
[1723726398069,0.04594503,144.03,144.0,0.04380439]
[1723726398665,0.04594503,144.03,144.02,3.4715]
[1723726400272,57.44,144.12,144.0,0.04380439]
[1723726400570,57.44,144.12,143.99,49.98]
[1723726400764,49.98,144.09,143.97,49.98]
[1723726401167,49.98,144.07,143.96,1.3393]
[1723726401479,0.05311834,144.04,144.02,0.05270035]
[1723726401866,3.4714,144.03,143.95,1.2298]
[1723726402066,0.04900034,144.04,144.02,0.05269816]
[1723726402374,0.04900034,144.04,144.02,0.05099523]
[1723726402375,0.0460827,144.04,144.02,0.05099523]
[1723726403067,0.0460827,144.04,144.02,3.52239523]
[1723726403574,0.0460827,144.04,144.02,0.05099523]
[1723726404274,0.0460827,144.04,144.03,3.4713]
[1723726404873,0.0460827,144.04,144.02,0.05099523]
[1723726406870,0.0460827,144.04,144.03,3.4713]
[1723726407471,3.469,144.13,144.02,0.05099523]
[1723726407678,7.46,144.15,144.04,49.98]
[1723726408175,57.44,144.15,144.02,51.2449]
[1723726408373,49.98,144.12,144.02,1.2649]
[1723726408570,0.04949206,144.1,144.07,0.04606853]
[1723726408769,0.04949206,144.1,144.0,1.2993]
[1723726409073,49.98,144.12,144.0,1.2993]
[1723726409479,49.98,144.1,144.0,1.2993]